bitfinex-derivatives/quotes_BTCF0:USTF0_20250620
["timestamp","ask_amount","ask_price","bid_price","bid_amount"]
[1750440376997,0.14,102880.0,102870.0,1.59580833]
[1750440377198,0.14,102880.0,102870.0,1.90580833]
[1750440377397,0.14,102880.0,102870.0,1.2712079]
[1750440377596,0.14,102880.0,102870.0,1.78180833]
[1750440377795,0.14,102880.0,102870.0,1.2772079]
[1750440378000,0.14,102880.0,102870.0,1.78180833]
[1750440378706,0.14,102880.0,102870.0,1.2772079]
[1750440378900,0.14,102880.0,102870.0,1.78180833]
[1750440379200,0.141,102880.0,102870.0,1.77940833]
[1750440379406,0.141,102880.0,102870.0,1.77980833]
[1750440379605,0.3353811,102880.0,102870.0,1.41900833]
[1750440379905,0.6951811,102880.0,102870.0,0.7164079]
[1750440380208,0.6951811,102880.0,102870.0,0.7160079]
[1750440380397,0.6951811,102880.0,102870.0,0.7164079]
[1750440380903,0.6951811,102880.0,102870.0,0.5208834]
[1750440381304,0.6951811,102880.0,102870.0,0.5144834]
[1750440382008,0.6961811,102880.0,102870.0,0.5128834]
[1750440383903,0.5018,102880.0,102870.0,0.5128834]
[1750440384409,0.141,102880.0,102870.0,1.01748383]
[1750440385106,0.141,102880.0,102870.0,0.5128834]
[1750440385303,0.141,102880.0,102870.0,1.21300833]
[1750440385903,0.141,102880.0,102870.0,0.7084079]
[1750440386104,0.141,102880.0,102870.0,1.21300833]
[1750440386413,0.16997441,102880.0,102870.0,0.7084079]
[1750440386611,0.16997441,102880.0,102870.0,1.21300833]
[1750440387002,0.03087441,102880.0,102870.0,1.88380833]
[1750440387202,0.5651811,102880.0,102870.0,0.4643]
[1750440387509,2.48012979,102880.0,102870.0,0.3755]
[1750440387807,0.1944,102870.0,102860.0,0.09817805]
[1750440388008,1.17990043,102870.0,102860.0,0.24397765]
[1750440388311,1.5706464,102870.0,102860.0,0.00097215]
[1750440388498,1.68825062,102870.0,102860.0,0.00097215]
[1750440388699,1.18365019,102870.0,102860.0,0.00097215]
[1750440388900,1.68825062,102870.0,102860.0,0.00137215]
[1750440389109,1.72825062,102870.0,102860.0,0.00137215]
[1750440390104,1.73325062,102870.0,102860.0,0.00137215]
[1750440390613,1.73525062,102870.0,102860.0,0.00137215]
[1750440391005,1.73525062,102870.0,102860.0,0.19579105]
[1750440391303,1.73525062,102870.0,102860.0,0.00137215]
[1750440391509,1.74025062,102870.0,102860.0,0.00137215]
[1750440392008,2.0249636,102870.0,102860.0,0.00137215]
[1750440392213,2.0249636,102870.0,102860.0,0.19579105]
[1750440392400,2.0249636,102870.0,102860.0,0.19404623]
[1750440393005,0.1944189,102860.0,102850.0,0.5133473]
[1750440393207,2.42374222,102860.0,102850.0,0.5133473]
[1750440393400,2.49380034,102860.0,102850.0,0.5133473]
[1750440393607,1.98919991,102860.0,102850.0,0.5133473]
[1750440393907,2.44380034,102860.0,102850.0,0.5133473]
[1750440394106,2.46380034,102860.0,102850.0,0.5133473]
[1750440394310,2.64370034,102860.0,102850.0,0.4647384]
[1750440394512,1.04093991,102860.0,102850.0,0.4647384]
[1750440394705,1.38278101,102860.0,102850.0,0.6602629]
[1750440394916,0.29082101,102860.0,102850.0,1.16486333]
[1750440395106,1.45869686,102860.0,102850.0,1.16486333]
[1750440395309,1.46237686,102860.0,102850.0,0.6602629]
[1750440395911,0.37065686,102860.0,102850.0,0.6602629]
[1750440396207,0.37065686,102860.0,102850.0,0.4647384]
[1750440396407,0.48923991,102860.0,102850.0,0.6602629]
[1750440397509,0.29482101,102860.0,102850.0,0.6602629]
[1750440397905,0.22491379,102860.0,102850.0,1.52486333]
[1750440398206,0.22491379,102860.0,102850.0,1.52566333]
[1750440398612,0.22491379,102860.0,102850.0,1.3910629]
[1750440399112,0.25382,102860.0,102850.0,1.3910629]
[1750440399301,0.25382,102860.0,102850.0,1.2110629]
[1750440399507,0.25382,102860.0,102850.0,1.71566333]
[1750440400118,0.17790621,102860.0,102850.0,1.71566333]
[1750440400314,0.25383462,102860.0,102850.0,1.71566333]
[1750440400514,0.25383462,102860.0,102850.0,1.71606333]
[1750440400515,0.17790621,102860.0,102850.0,1.71606333]
[1750440401022,0.17790621,102860.0,102850.0,1.52606333]
[1750440401212,0.17790621,102860.0,102850.0,1.0214629]
[1750440401414,0.17790621,102860.0,102850.0,1.52606333]
[1750440401612,0.73312511,102860.0,102850.0,0.1735]
[1750440401812,1.23772554,102860.0,102850.0,0.3679378]
[1750440402117,2.74351194,102860.0,102850.0,0.0855]
[1750440402314,0.1944378,102850.0,102840.0,0.0858]
[1750440402517,0.80003198,102850.0,102840.0,0.3321]
[1750440402722,1.37391446,102850.0,102840.0,0.5257567]
[1750440402922,0.94520153,102850.0,102840.0,0.5261567]
[1750440403322,0.75076373,102850.0,102840.0,0.5261567]
[1750440403525,0.94620153,102850.0,102840.0,0.7216812]
[1750440404622,0.94620153,102850.0,102840.0,0.6516812]
[1750440404815,0.75176373,102850.0,102840.0,0.6516812]
[1750440405015,0.73370026,102850.0,102840.0,0.6516812]
[1750440405411,1.23830069,102850.0,102840.0,0.6516812]
[1750440405617,1.23830069,102850.0,102840.0,0.4561567]
[1750440405810,0.82550026,102850.0,102840.0,0.4557567]
[1750440406012,1.41480069,102850.0,102840.0,0.4561567]
[1750440406217,1.41480069,102850.0,102840.0,0.3689567]
[1750440406425,1.60926469,102850.0,102840.0,0.0004]
[1750440406612,1.02877676,102850.0,102840.0,0.1948567]
[1750440406812,1.02877676,102850.0,102840.0,0.1944567]
[1750440407016,1.53337719,102850.0,102840.0,0.0004]
[1750440408122,1.02877676,102850.0,102840.0,0.0004]
[1750440408431,1.57337719,102850.0,102840.0,0.0004]
[1750440409127,1.06877676,102850.0,102840.0,0.0004]
[1750440409425,1.57337719,102850.0,102840.0,0.0004]
[1750440409621,1.54447098,102850.0,102840.0,0.0004]
[1750440409815,0.1944567,102840.0,102830.0,0.00097243]
[1750440410011,2.06924114,102840.0,102830.0,0.00097243]
[1750440410220,2.21588976,102840.0,102830.0,0.00097243]
[1750440410427,2.72049019,102840.0,102830.0,0.00097243]
[1750440410612,2.21588976,102840.0,102830.0,0.00097243]
[1750440411024,1.63549019,102840.0,102830.0,0.00097243]
[1750440411326,2.72053019,102840.0,102830.0,0.00697243]
[1750440411723,2.72053019,102840.0,102830.0,0.00997243]
[1750440411922,1.13088976,102840.0,102830.0,0.00997243]
[1750440412319,2.7204754,102840.0,102830.0,0.18127243]
[1750440412514,2.64567853,102840.0,102830.0,0.18127243]
[1750440412723,2.72147022,102840.0,102830.0,0.18127243]
[1750440413034,2.03264979,102840.0,102830.0,0.56527253]
[1750440413529,2.53725022,102840.0,102830.0,0.08467243]
[1750440413928,2.53725022,102840.0,102830.0,0.16917243]
[1750440414125,2.62635022,102840.0,102830.0,0.16917243]
[1750440414628,2.12174979,102840.0,102830.0,0.16917243]
[1750440414830,2.71535022,102840.0,102830.0,0.16917243]
[1750440415021,2.71935022,102840.0,102830.0,0.00137243]
[1750440415218,2.71935022,102840.0,102830.0,0.00097243]
[1750440415630,2.72535022,102840.0,102830.0,0.00097243]
[1750440415830,2.71935022,102840.0,102830.0,0.00097243]
[1750440416124,2.71935022,102840.0,102830.0,0.00137243]
[1750440416330,2.24174979,102840.0,102830.0,0.00137243]
[1750440416533,2.74635022,102840.0,102830.0,0.00137243]
[1750440416827,2.74635022,102840.0,102830.0,0.00097243]
[1750440417031,3.27935065,102840.0,102830.0,0.00137243]
[1750440417229,2.77475022,102840.0,102830.0,0.00137243]
[1750440417532,2.77475022,102840.0,102830.0,0.19584803]
[1750440417732,1.68967022,102840.0,102830.0,0.00137243]
[1750440417933,2.74623022,102840.0,102830.0,0.00137243]
[1750440418129,1.66127022,102840.0,102830.0,0.00137243]
[1750440418330,2.74615022,102840.0,102830.0,0.00137243]
[1750440418721,3.05239375,102840.0,102830.0,0.00137243]
[1750440419435,3.05239375,102840.0,102830.0,0.00097243]
[1750440419629,2.54779332,102840.0,102830.0,0.00097243]
[1750440419932,3.25469375,102840.0,102830.0,0.00137243]
[1750440420330,2.63833779,102840.0,102830.0,0.00137243]
[1750440420636,0.1944945,102820.0,102810.0,0.0008]
[1750440420828,0.1945134,102810.0,102800.0,0.28147272]
[1750440421022,2.30346661,102810.0,102800.0,0.28147272]
[1750440421328,2.67093998,102810.0,102800.0,0.09697272]
[1750440421638,2.25533955,102810.0,102800.0,0.00137272]
[1750440422030,2.75993998,102810.0,102800.0,0.00137272]
[1750440422334,2.25533955,102810.0,102800.0,0.00097272]
[1750440422536,2.83847682,102810.0,102800.0,0.00137272]
[1750440422720,2.83847682,102810.0,102800.0,0.00097272]
[1750440422920,2.83847682,102810.0,102800.0,0.00137272]
[1750440423126,3.02265344,102810.0,102800.0,0.00137272]
[1750440423332,3.02265344,102810.0,102780.0,0.29874791]
[1750440423333,0.1945513,102790.0,102780.0,0.29874791]
[1750440423530,0.78095736,102790.0,102780.0,0.68964261]
[1750440423730,0.92736677,102790.0,102780.0,0.68884261]
[1750440423923,1.4319672,102790.0,102780.0,0.49371811]
[1750440424124,0.1945702,102780.0,102770.0,0.000973]
[1750440424333,2.53017217,102780.0,102770.0,0.000973]
[1750440424531,0.1945891,102770.0,102760.0,0.0995039]
[1750440424739,0.95099064,102770.0,102760.0,0.293312]
[1750440424936,1.60180692,102770.0,102760.0,0.0991039]
[1750440425324,1.60180692,102770.0,102760.0,0.293712]
[1750440425528,1.09720649,102770.0,102760.0,0.293712]
[1750440425728,1.60180692,102770.0,102760.0,0.1877039]
[1750440425935,2.68644692,102770.0,102760.0,0.0103039]
[1750440426138,2.68644692,102770.0,102760.0,0.0129039]
[1750440426337,3.14646416,102770.0,102760.0,0.0129039]
[1750440426529,0.1946273,102750.0,102740.0,0.00177328]
[1750440426728,2.46093719,102750.0,102740.0,0.00097328]
[1750440426927,1.51485485,102750.0,102740.0,0.19601958]
[1750440427238,1.46485485,102750.0,102740.0,0.19601958]
[1750440427433,1.46485485,102750.0,102740.0,1.43554451]
[1750440427434,0.86202755,102750.0,102740.0,1.43554451]
[1750440427734,0.65887278,102750.0,102740.0,1.28094408]
[1750440428040,0.05184718,102750.0,102740.0,1.69560008]
[1750440428240,0.05384718,102750.0,102740.0,2.20020051]
[1750440428630,0.05384718,102750.0,102740.0,1.25094408]
[1750440428840,0.044,102750.0,102740.0,1.50554451]
[1750440429032,0.044,102750.0,102740.0,1.00094408]
[1750440429033,0.042,102750.0,102740.0,1.00094408]
[1750440429237,0.042,102750.0,102740.0,1.00294408]
[1750440429443,0.042,102750.0,102740.0,0.57214408]
[1750440429444,0.18827808,102750.0,102740.0,0.57214408]
[1750440429837,0.38290528,102750.0,102740.0,0.57174408]
[1750440430147,0.18827808,102750.0,102740.0,0.57174408]
[1750440430345,0.18727808,102750.0,102740.0,0.58574408]
[1750440430538,0.18727808,102750.0,102740.0,1.45154451]
[1750440430735,0.18727808,102750.0,102740.0,1.69154451]
[1750440430940,0.04,102750.0,102740.0,1.67754451]
[1750440431142,0.04,102750.0,102740.0,1.68354451]
[1750440431540,0.04,102750.0,102740.0,1.48354451]
[1750440432045,0.041,102750.0,102740.0,1.44454451]
[1750440432241,0.041,102750.0,102740.0,1.88920051]
[1750440432438,0.041,102750.0,102740.0,1.69454451]
[1750440432841,0.041,102750.0,102740.0,2.02154451]
[1750440433042,0.042,102750.0,102740.0,1.70354451]
[1750440433238,0.042,102750.0,102740.0,2.23820051]
[1750440434144,0.042,102750.0,102740.0,1.89820051]
[1750440435044,0.042,102750.0,102740.0,2.98272051]
[1750440435240,0.042,102750.0,102740.0,3.33272051]
[1750440435546,0.2,102780.0,102770.0,0.1945893]
[1750440435748,0.05658111,102790.0,102780.0,0.1945703]
[1750440435935,0.05658111,102800.0,102790.0,0.1945514]
[1750440436139,0.05658111,102810.0,102800.0,0.1945325]
[1750440436338,0.20658111,102810.0,102800.0,1.08185733]
[1750440436534,0.54691211,102810.0,102800.0,0.9380569]
[1750440437045,0.1945325,102800.0,102790.0,0.2431728]
[1750440437246,0.82513293,102800.0,102790.0,0.9866972]
[1750440437450,0.3205325,102800.0,102790.0,0.9866972]
[1750440437654,0.3205325,102800.0,102790.0,0.6258972]
[1750440437943,1.00993293,102800.0,102790.0,0.3827244]
[1750440438150,1.15567745,102800.0,102790.0,0.5772758]
[1750440438345,0.65107702,102800.0,102790.0,0.5772758]
[1750440438552,0.65707702,102800.0,102790.0,0.5776758]
[1750440438844,1.59305856,102800.0,102790.0,0.2894244]
[1750440439247,1.58905856,102800.0,102790.0,0.0939]
[1750440439543,1.08545813,102800.0,102790.0,0.0004]
[1750440439743,1.08545813,102800.0,102790.0,0.1949514]
[1750440439944,1.11308813,102800.0,102790.0,0.1949514]
[1750440440143,1.11608813,102800.0,102790.0,0.0004]
[1750440440841,0.1945514,102790.0,102780.0,0.45155398]
[1750440441046,0.39980986,102790.0,102780.0,1.00787838]
[1750440441953,0.20525846,102790.0,102780.0,1.00787838]
[1750440442150,0.20525846,102790.0,102780.0,1.52247881]
[1750440442442,0.20525846,102790.0,102780.0,1.51247881]
[1750440442647,0.20525846,102790.0,102780.0,1.51347881]
[1750440442853,0.20725846,102790.0,102780.0,1.51347881]
[1750440443243,0.39980976,102790.0,102780.0,1.51347881]
[1750440443441,0.20525846,102790.0,102780.0,1.51747881]
[1750440443647,0.20525846,102790.0,102780.0,2.16206281]
[1750440443846,0.05662846,102810.0,102790.0,0.1945513]
[1750440444039,0.04,102810.0,102800.0,2.15742766]
[1750440444235,0.3618,102830.0,102820.0,0.1944946]
[1750440444236,0.6049037,102830.0,102820.0,0.1944946]
[1750440444439,0.79160813,102830.0,102820.0,0.70598943]
[1750440444644,0.69412793,102830.0,102820.0,0.89308943]
[1750440444851,0.18770443,102830.0,102820.0,1.10308943]
[1750440445040,0.131,102830.0,102820.0,1.46388943]
[1750440445238,0.131,102830.0,102820.0,1.65839343]
[1750440445444,0.05670443,102840.0,102830.0,0.1944758]
[1750440445654,0.07979663,102840.0,102830.0,2.57431063]
[1750440445851,0.09571298,102860.0,102840.0,0.0486101]
[1750440445852,0.001,102860.0,102840.0,0.0486101]
[1750440446053,0.011,102860.0,102850.0,2.59483843]
[1750440446253,0.011,102860.0,102850.0,2.84813843]
[1750440446554,0.2209,102890.0,102880.0,0.1943813]
[1750440446753,0.50042,102890.0,102880.0,0.1943813]
[1750440446951,0.47087494,102890.0,102880.0,0.3786813]
[1750440447145,0.27651254,102890.0,102880.0,0.3786813]
[1750440447346,0.97547537,102890.0,102880.0,0.2876813]
[1750440447552,1.16177537,102890.0,102880.0,0.1943813]
[1750440447754,1.16177537,102890.0,102880.0,0.1947813]
[1750440448054,0.66517494,102890.0,102880.0,0.1957813]
[1750440448445,1.16977537,102890.0,102880.0,0.1957813]
[1750440448642,1.54057537,102890.0,102880.0,0.1953813]
[1750440448853,0.98541297,102890.0,102880.0,0.1953813]
[1750440449045,1.17977537,102890.0,102880.0,0.1957813]
[1750440449254,1.17977537,102890.0,102880.0,0.1953813]
[1750440449555,0.67517494,102890.0,102880.0,0.1957813]
[1750440449943,1.58057537,102890.0,102880.0,0.1957813]
[1750440450252,1.07597494,102890.0,102880.0,0.1957813]
[1750440450459,1.21177537,102890.0,102880.0,0.1947813]
[1750440450750,0.70717494,102890.0,102880.0,0.1957813]
[1750440450947,1.66976367,102890.0,102880.0,0.1943812]
[1750440451145,0.3401901,102880.0,102870.0,0.1944001]
[1750440451344,2.62825053,102880.0,102870.0,0.1944001]
[1750440451553,2.77481989,102880.0,102870.0,0.1944001]
[1750440451755,0.64736936,102880.0,102870.0,0.1944001]
[1750440451952,1.03245056,102880.0,102870.0,0.1944001]
[1750440452143,0.64736936,102880.0,102870.0,0.1944001]
[1750440452348,0.64736936,102880.0,102870.0,0.2886001]
[1750440452552,0.65136936,102880.0,102870.0,0.3804001]
[1750440453257,0.64736936,102880.0,102870.0,0.3824001]
[1750440454247,0.64736936,102880.0,102870.0,0.88700053]
[1750440455356,0.28656936,102880.0,102870.0,0.7432001]
[1750440456055,0.28656936,102880.0,102870.0,0.002]
[1750440456056,1.34635099,102880.0,102870.0,0.002]
[1750440456257,0.194419,102860.0,102850.0,0.30899923]
[1750440456448,0.334419,102860.0,102850.0,0.30899923]
[1750440456649,0.1944501,102850.0,102830.0,0.37816657]
[1750440456854,1.05985723,102840.0,102830.0,0.01736657]
[1750440457152,1.60806237,102840.0,102830.0,0.21184227]
[1750440457353,1.60806237,102840.0,102830.0,0.21224227]
[1750440457759,1.60806237,102840.0,102830.0,0.21184227]
[1750440457960,1.60806237,102840.0,102830.0,0.01776657]
[1750440458256,1.60806237,102840.0,102830.0,0.01736657]
[1750440458552,0.91900514,102840.0,102830.0,0.522367]
[1750440458753,0.13,102840.0,102830.0,0.883167]
[1750440459055,0.13,102840.0,102830.0,0.01776657]
[1750440459357,0.4908,102840.0,102830.0,0.01736657]
[1750440459550,1.38025723,102840.0,102830.0,0.01776657]
[1750440459753,1.62414764,102840.0,102820.0,0.1428205]
[1750440460050,1.25027613,102830.0,102820.0,0.0108]
[1750440460249,1.40027613,102830.0,102820.0,0.01]
[1750440460450,1.54618747,102830.0,102820.0,0.0104]
[1750440461054,1.04158704,102830.0,102820.0,0.0104]
[1750440461654,0.48731134,102830.0,102820.0,0.0104]
[1750440461852,0.29691134,102830.0,102820.0,0.61020043]
[1750440462052,0.29691134,102830.0,102820.0,0.70280043]
[1750440463158,0.29691134,102830.0,102820.0,0.70480043]
[1750440463956,0.15,102830.0,102820.0,1.05760043]
[1750440464259,0.15,102830.0,102820.0,1.54210443]
[1750440464455,0.0011,102830.0,102820.0,1.79210443]
[1750440464656,0.6556,102860.0,102820.0,1.79210443]
[1750440464960,0.2348,102860.0,102850.0,0.50460043]
[1750440465454,0.14,102860.0,102850.0,0.50460043]
[1750440465655,0.14,102860.0,102850.0,1.94388043]
[1750440465860,0.14,102860.0,102850.0,1.95388043]
[1750440466756,0.14,102860.0,102850.0,1.44928]
[1750440467060,0.145,102860.0,102850.0,1.80714434]
[1750440467360,0.152,102860.0,102850.0,1.80698434]
[1750440467558,0.152,102860.0,102850.0,1.90348434]
[1750440468062,0.152,102860.0,102850.0,1.99298434]
[1750440468257,0.17312038,102860.0,102850.0,1.99698434]
[1750440468955,0.17312038,102860.0,102850.0,1.99298434]
[1750440469156,0.17312038,102860.0,102850.0,2.00098434]
[1750440469956,0.16812038,102860.0,102850.0,2.19543234]
[1750440470156,0.16812038,102860.0,102850.0,2.41543234]
[1750440470550,0.16812038,102860.0,102850.0,1.33711234]
[1750440470750,0.16812038,102860.0,102850.0,2.20079234]
[1750440471158,0.16812038,102860.0,102850.0,1.12351234]
[1750440471359,0.16812038,102860.0,102850.0,2.20035234]
[1750440471553,0.16812038,102860.0,102850.0,1.842488]
[1750440471756,0.16812038,102860.0,102850.0,1.835488]
[1750440471958,0.16812038,102860.0,102850.0,2.19335234]
[1750440472155,0.16812038,102860.0,102850.0,0.92206434]
[1750440472460,0.16812038,102860.0,102850.0,2.00042434]
[1750440472662,0.16812038,102860.0,102850.0,1.99998434]
[1750440472858,0.26622038,102860.0,102850.0,1.64212]
[1750440473063,0.26622038,102860.0,102850.0,1.64252]
[1750440473264,0.32280884,102860.0,102850.0,1.64212]
[1750440473465,0.32280884,102860.0,102850.0,1.64252]
[1750440473762,0.68360884,102860.0,102850.0,0.1055]
[1750440474060,0.68360884,102860.0,102850.0,0.1099]
[1750440474365,0.26622038,102860.0,102850.0,0.1059]
[1750440474658,0.26622038,102860.0,102850.0,0.0999]
[1750440474858,0.26622038,102860.0,102850.0,0.45776434]
[1750440475064,0.26622038,102860.0,102850.0,0.0999]
[1750440475358,0.68368956,102860.0,102850.0,0.0104]
[1750440475559,0.78278956,102860.0,102850.0,0.0104]
[1750440476064,0.42198956,102860.0,102850.0,0.1032]
[1750440476261,0.42198956,102860.0,102850.0,0.46106434]
[1750440476561,0.42198956,102860.0,102850.0,0.45106434]
[1750440476764,0.32288956,102860.0,102850.0,0.1832]
[1750440476968,0.32588956,102860.0,102850.0,0.63316434]
[1750440477361,0.32988956,102860.0,102850.0,0.54316434]
[1750440477563,0.32688956,102860.0,102850.0,0.54316434]
[1750440477757,0.22478956,102860.0,102850.0,0.54716434]
[1750440477963,0.1682011,102860.0,102850.0,1.06796434]
[1750440478562,0.1682011,102860.0,102850.0,1.07096434]
[1750440478867,0.1682011,102860.0,102850.0,1.26541234]
[1750440479059,0.1682011,102860.0,102850.0,1.51541234]
[1750440479262,0.1682011,102860.0,102850.0,1.69541234]
[1750440479969,0.1682011,102860.0,102850.0,1.69841234]
[1750440480370,0.1682011,102860.0,102850.0,1.69441234]
[1750440480563,0.1682011,102860.0,102850.0,2.60033234]
[1750440480758,0.1682011,102860.0,102850.0,2.59433234]
[1750440481056,0.1682011,102860.0,102850.0,0.1764]
[1750440481257,0.1682011,102860.0,102850.0,0.3784379]
[1750440481258,0.85999076,102860.0,102850.0,0.3784379]
[1750440481465,1.05440976,102860.0,102850.0,0.0004]
[1750440481664,0.1944379,102850.0,102840.0,0.26088057]
[1750440481970,1.74600655,102850.0,102830.0,0.1952726]
[1750440482157,0.54486434,102840.0,102830.0,0.1944726]
[1750440482359,0.90752224,102840.0,102830.0,0.1944726]
[1750440482560,0.50154672,102840.0,102830.0,0.5556726]
[1750440482760,0.55838844,102840.0,102830.0,0.1948726]
[1750440483265,0.55838844,102840.0,102830.0,0.5556726]
[1750440483964,0.55838844,102840.0,102830.0,0.91353694]
[1750440484173,0.55838844,102840.0,102830.0,1.01283694]
[1750440484174,0.1682011,102840.0,102830.0,1.01283694]
[1750440484368,0.1682011,102840.0,102830.0,1.11043694]
[1750440484563,0.1682011,102840.0,102830.0,1.11143694]
[1750440484759,0.16144172,102850.0,102840.0,0.21218603]
[1750440484760,0.06884172,102850.0,102840.0,0.21218603]
[1750440484958,0.05684172,102870.0,102850.0,0.1944379]
[1750440485157,0.28994172,102870.0,102860.0,0.555219]
[1750440485368,0.28635154,102870.0,102860.0,1.98492334]
[1750440485572,0.14,102870.0,102860.0,2.19712334]
[1750440485773,0.14,102870.0,102860.0,0.767419]
[1750440485964,0.14,102870.0,102860.0,0.669819]
[1750440486168,0.14,102870.0,102860.0,0.670219]
[1750440486869,0.14,102870.0,102860.0,1.02808334]
[1750440487076,0.14,102870.0,102860.0,1.11728334]
[1750440487574,0.145,102870.0,102860.0,1.11728334]
[1750440487772,0.145,102870.0,102860.0,0.763419]
[1750440487964,0.2372,102870.0,102860.0,0.674219]
[1750440488165,0.33,102870.0,102860.0,0.313019]
[1750440488370,0.33,102870.0,102860.0,0.684219]
[1750440488570,0.33,102870.0,102860.0,1.04208334]
[1750440488775,0.33,102870.0,102860.0,1.03208334]
[1750440489074,0.05736172,102890.0,102880.0,0.1943812]
[1750440489274,0.13997842,102890.0,102880.0,1.41963911]
[1750440489473,0.0978,102900.0,102890.0,0.1943623]
[1750440489778,0.25545128,102930.0,102920.0,0.1943057]
[1750440489977,0.07545128,102940.0,102930.0,0.1942868]
[1750440490183,0.12,102940.0,102930.0,1.15588261]
[1750440490378,0.12,102940.0,102930.0,1.20445291]
[1750440490679,0.001,102950.0,102940.0,0.1942679]
[1750440490882,0.141,102950.0,102940.0,2.32034581]
[1750440491174,0.61542844,102980.0,102970.0,0.1942113]
[1750440491175,1.40221519,102980.0,102970.0,0.1942113]
[1750440491381,1.17128055,102980.0,102970.0,0.1942114]
[1750440491573,0.14498351,102970.0,102960.0,0.3398787]
[1750440491773,0.6750114,102970.0,102960.0,0.2913218]
[1750440491970,0.62564515,102970.0,102960.0,0.2913218]
[1750440492171,1.37206996,102970.0,102960.0,0.1946302]
[1750440492579,0.92355655,102970.0,102960.0,0.1946302]
[1750440492774,1.00955655,102970.0,102960.0,0.1942302]
[1750440492974,1.07955655,102970.0,102960.0,0.1946302]
[1750440493482,1.4448551,102970.0,102960.0,0.1956302]
[1750440493684,1.4448551,102970.0,102960.0,0.1952302]
[1750440493978,1.4448551,102970.0,102960.0,0.1956302]
[1750440494180,0.2913713,102960.0,102940.0,0.0493644]
[1750440494487,2.46073851,102960.0,102950.0,0.2428031]
[1750440494682,2.46073851,102960.0,102950.0,0.194241]
[1750440494889,0.1942491,102950.0,102940.0,0.1950546]
[1750440495279,0.84034689,102950.0,102940.0,0.1942546]
[1750440495473,0.84034689,102950.0,102930.0,1.1539261]
[1750440495474,0.194268,102940.0,102930.0,1.1539261]
[1750440495680,0.14,102940.0,102930.0,1.201697]
[1750440495874,0.28529779,102940.0,102930.0,1.562897]
[1750440496381,0.47956569,102940.0,102930.0,1.659797]
[1750440496683,0.5073887,102940.0,102930.0,1.659797]
[1750440496886,0.5073887,102940.0,102930.0,1.298997]
[1750440497272,0.3171208,102940.0,102930.0,1.659797]
[1750440497579,0.5113887,102940.0,102930.0,1.390997]
[1750440497780,0.5113887,102940.0,102930.0,1.298997]
[1750440498080,0.5113887,102940.0,102930.0,1.204097]
[1750440498277,1.22948725,102940.0,102930.0,0.002]
[1750440498482,0.1942868,102930.0,102920.0,0.0008]
[1750440498678,0.1943057,102920.0,102910.0,0.01790959]
[1750440498872,1.08022726,102920.0,102910.0,0.01790959]
[1750440499080,1.08022726,102920.0,102890.0,1.22040143]
[1750440499081,0.1943245,102910.0,102900.0,0.0008]
[1750440499283,0.1943434,102900.0,102890.0,0.00097186]
[1750440499480,0.72296641,102900.0,102890.0,0.19533416]
[1750440499677,0.86903214,102900.0,102890.0,0.21277199]
[1750440500182,0.86903214,102900.0,102890.0,0.19533416]
[1750440500385,0.87703214,102900.0,102890.0,0.19633416]
[1750440500586,0.87703214,102900.0,102890.0,0.00197186]
[1750440500989,1.28433069,102900.0,102890.0,0.00237186]
[1750440501187,0.92703214,102900.0,102890.0,0.19633416]
[1750440501587,0.93103214,102900.0,102890.0,0.19673416]
[1750440501784,0.93103214,102900.0,102890.0,0.00237186]
[1750440502090,0.1943624,102890.0,102880.0,0.0008]
[1750440502296,0.3401944,102880.0,102870.0,0.1944001]
[1750440502496,0.1944001,102870.0,102860.0,0.34198545]
[1750440502693,0.71302311,102870.0,102860.0,0.34118545]
[1750440502900,0.498601,102870.0,102860.0,0.34158545]
[1750440503293,0.859401,102870.0,102860.0,0.34158545]
[1750440503491,0.859401,102870.0,102860.0,0.24437725]
[1750440503686,0.859401,102870.0,102860.0,0.24397725]
[1750440503886,0.859401,102870.0,102860.0,0.24437725]
[1750440504091,0.869401,102870.0,102860.0,0.24437725]
[1750440504596,0.859401,102870.0,102860.0,0.25337725]
[1750440504787,0.3042009,102870.0,102860.0,0.9710758]
[1750440504991,0.3042009,102870.0,102860.0,0.6106758]
[1750440505189,0.3042009,102870.0,102860.0,0.43947725]
[1750440505391,0.3042009,102870.0,102860.0,0.80027725]
[1750440505588,0.3042009,102870.0,102860.0,0.79227725]
[1750440505803,0.3042009,102870.0,102860.0,0.79527725]
[1750440506002,0.3042009,102870.0,102860.0,1.1525758]
[1750440506301,0.15782301,102870.0,102860.0,1.1525758]
[1750440506598,0.2,102900.0,102890.0,0.1943624]
[1750440506802,0.16740314,102900.0,102890.0,0.96246095]
[1750440507101,0.31415701,102900.0,102890.0,1.00546095]
[1750440507302,0.50850051,102900.0,102890.0,0.2873624]
[1750440507503,0.60100051,102900.0,102890.0,0.2873624]
[1750440507804,0.41565701,102900.0,102890.0,0.2873624]
[1750440508411,0.61000041,102900.0,102890.0,0.2873624]
[1750440508705,0.40665701,102900.0,102890.0,0.1943624]
[1750440508907,0.40665701,102900.0,102890.0,0.1953624]
[1750440509106,0.61100041,102900.0,102890.0,0.1963624]
[1750440509704,0.61100041,102900.0,102890.0,0.1967624]
[1750440509899,0.40865701,102900.0,102890.0,0.1957624]
[1750440510095,0.96380041,102900.0,102890.0,0.1957624]
[1750440510298,0.97380041,102900.0,102890.0,0.1957624]
[1750440510500,0.87405701,102900.0,102890.0,0.1957624]
[1750440510704,0.51325701,102900.0,102890.0,0.1953624]
[1750440510900,1.11840041,102900.0,102890.0,0.1957624]
[1750440511207,1.47569896,102900.0,102890.0,0.1953623]
[1750440511503,1.47569896,102900.0,102890.0,0.0014]
[1750440511704,1.66661402,102900.0,102890.0,0.0014]
[1750440511900,1.91661402,102900.0,102890.0,0.0014]
[1750440512204,1.91661402,102900.0,102890.0,0.1953623]
[1750440512507,1.91661402,102900.0,102890.0,0.1957623]
[1750440513809,1.55931547,102900.0,102890.0,0.0014]
[1750440514006,1.91661402,102900.0,102890.0,0.0014]
[1750440514213,1.749273,102900.0,102890.0,0.0014]
[1750440514414,1.39197445,102900.0,102890.0,0.1957623]
[1750440514710,1.39197445,102900.0,102890.0,0.0014]
[1750440515005,1.554897,102900.0,102890.0,0.0014]
[1750440515210,1.749273,102900.0,102890.0,0.0014]
[1750440515407,2.00775845,102900.0,102890.0,0.1957623]
[1750440515606,0.58679845,102900.0,102890.0,0.1957623]
[1750440515801,0.34315949,102900.0,102890.0,1.01076085]
[1750440516003,0.14881599,102900.0,102890.0,1.10576085]
[1750440516399,0.032,102900.0,102890.0,1.10576085]
[1750440519407,0.032,102900.0,102890.0,1.45576085]
[1750440519608,0.032,102900.0,102890.0,1.90013685]
[1750440520009,0.032,102900.0,102890.0,1.90988976]
[1750440520214,0.2,102930.0,102920.0,0.1943057]
[1750440520408,0.14,102930.0,102920.0,0.91240425]